bitfinex/quotes_SOLUSD_20260310
["timestamp","ask_amount","ask_price","bid_price","bid_amount"]
[1773185592130,23.77238987,85.55,85.525,1.14675351]
[1773185593405,0.81134652,85.549,85.526,12.83910437]
[1773185593608,0.81134652,85.549,85.527,1.14675351]
[1773185595315,11.27290547,85.55,85.529,1.14675351]
[1773185595529,0.80807679,85.539,85.517,1.14675351]
[1773185595838,0.80807679,85.539,85.511,1.14675351]
[1773185597821,0.80807679,85.539,85.513,1.14675351]
[1773185599729,0.80807679,85.539,85.515,1.24352094]
[1773185600517,0.80183214,85.564,85.531,1.24352094]
[1773185602138,0.80083227,85.562,85.533,1.24352094]
[1773185603321,4.2012869,85.56,85.533,1.24352094]
[1773185603718,0.79884543,85.559,85.533,1.24352094]
[1773185603922,0.79884543,85.559,85.532,11.69153065]
[1773185604118,0.79884543,85.559,85.535,1.24352094]
[1773185604324,0.79884543,85.561,85.535,1.24352094]
[1773185604626,11.68669571,85.568,85.535,1.24352094]
[1773185604823,0.79787185,85.567,85.535,1.24352094]
[1773185605823,0.79787185,85.567,85.537,1.24352094]
[1773185606738,11.68688497,85.566,85.537,1.24352094]
[1773185608145,0.79501395,85.579,85.551,1.24352094]
[1773185608726,0.79408898,85.578,85.551,1.24352094]
[1773185608926,0.79408898,85.569,85.541,1.24352094]
[1773185611148,0.79408898,85.569,85.542,11.69016389]
[1773185611338,0.79225375,85.586,85.551,1.24352094]
[1773185612441,11.68429047,85.585,85.552,40.91079109]
[1773185612639,11.68429047,85.585,85.553,1.24352094]
[1773185613230,12.4747563,85.585,85.553,1.24352094]
[1773185613551,12.4747563,85.585,85.554,11.6885242]
[1773185613751,12.4747563,85.585,85.555,1.24352094]
[1773185613954,0.78957672,85.584,85.555,1.24352094]
[1773185615734,12.47242109,85.583,85.557,1.24352094]
[1773185615935,0.78785757,85.583,85.557,1.24352094]
[1773185617479,0.78701435,85.579,85.555,11.68837719]
[1773185617648,0.78701435,85.579,85.554,1.24352094]
[1773185619033,0.78534643,85.589,85.556,1.24352094]
[1773185619828,0.78452995,85.587,85.556,1.24352094]
[1773185620243,4.39824829,85.59,85.555,40.90935654]
[1773185620244,0.2,85.59,85.561,1.24352094]
[1773185620455,1.16928977,85.616,85.56,4.19824829]
[1773185620456,1.16086594,85.638,85.59,1.24352094]
[1773185620672,1.16086594,85.638,85.611,1.24352094]
[1773185620953,11.67747578,85.635,85.612,11.68060552]
[1773185621248,11.67747578,85.635,85.61,4.19824829]
[1773185621249,1.36086594,85.63,85.6,4.19824829]
[1773185621453,1.16086594,85.628,85.601,11.68210651]
[1773185623147,1.16086594,85.628,85.594,29.20758736]
[1773185623148,1.16086594,85.626,85.594,29.20758736]
[1773185623450,1.16086594,85.619,85.591,11.68347139]
[1773185624445,1.16086594,85.619,85.592,1.24352094]
[1773185625647,1.16086594,85.618,85.593,11.68319839]
[1773185626559,1.16086594,85.618,85.561,1.16875679]
[1773185626560,1.16086594,85.618,85.578,1.24352094]
[1773185626859,1.16086594,85.618,85.561,1.16875679]
[1773185626860,1.16086594,85.599,85.573,11.68592897]
[1773185627861,1.12765284,85.597,85.568,11.68661181]
[1773185628067,1.12765284,85.589,85.558,11.68797774]
[1773185628248,1.12765284,85.579,85.558,11.68797774]
[1773185628448,1.12765284,85.579,85.544,1.18234802]
[1773185630954,1.12765284,85.579,85.546,1.14566605]
[1773185633148,1.12765284,85.579,85.547,40.91318222]
[1773185633443,1.12765284,85.579,85.548,1.14566605]
[1773185637469,1.13723768,85.579,85.55,1.14566605]
[1773185637642,1.13723768,85.579,85.551,1.14566605]
[1773185638465,4.19824829,85.59,85.551,1.14566605]
[1773185638647,4.19824829,85.58,85.551,1.14566605]
[1773185639959,4.19824829,85.58,85.553,1.14566605]
[1773185641374,1.13723768,85.579,85.555,1.14566605]
[1773185641873,1.13723768,85.569,85.542,12.83582994]
[1773185642178,1.13723768,85.569,85.543,1.14566605]
[1773185644368,1.13723768,85.569,85.545,1.14566605]
[1773185645064,1.13723768,85.559,85.544,11.68989058]
[1773185645967,1.13723768,85.559,85.54,15.01025819]
[1773185645968,1.13723768,85.559,85.54,14.82784069]
[1773185646266,1.13723768,85.559,85.541,11.69030055]
[1773185646963,11.68797774,85.558,85.54,14.82784069]
[1773185647172,1.13723768,85.557,85.54,14.82784069]
[1773185647670,1.13723768,85.557,85.541,11.69030055]
[1773185652568,1.13723768,85.569,85.542,1.14566605]
[1773185652948,1.13723768,85.569,85.541,11.69030055]
[1773185653152,1.13723768,85.559,85.541,11.69030055]
[1773185657274,1.13723768,85.558,85.54,14.82784069]
[1773185657458,1.13723768,85.558,85.536,11.69093749]
[1773185657662,1.13723768,85.605,85.551,1.14566605]
[1773185657883,1.13723768,85.605,85.571,1.14566605]
[1773185658182,1.13723768,85.605,85.581,1.14566605]
[1773185658478,1.13723768,85.619,85.591,1.14566605]
[1773185658676,1.13723768,85.61,85.583,1.14566605]
[1773185659459,1.13723768,85.61,85.584,12.94738449]
[1773185660161,1.13723768,85.61,85.585,1.2629575]
[1773185660361,1.13723768,85.61,85.584,40.89549447]
[1773185661179,1.18845994,85.608,85.584,11.68442699]
[1773185661558,1.18845994,85.608,85.58,1.2629575]
[1773185661965,8.40781597,85.62,85.591,1.2629575]
[1773185662166,1.18845994,85.619,85.591,1.2629575]
[1773185662380,1.18845994,85.618,85.584,1.2629575]
[1773185663976,1.18845994,85.618,85.585,40.89501664]
[1773185664182,1.18845994,85.618,85.586,1.2629575]
[1773185665385,1.18845994,85.618,85.59,4.19824829]
[1773185665679,1.18845994,85.618,85.591,1.2629575]
[1773185666186,1.2005283,85.616,85.585,30.45887393]
[1773185666685,1.2005283,85.616,85.585,29.21072617]
[1773185666991,1.2005283,85.616,85.581,11.68483658]
[1773185668181,1.2005283,85.614,85.581,11.68483658]
[1773185668387,1.2005283,85.614,85.58,4.19824829]
[1773185668783,1.2005283,85.614,85.581,11.68483658]
[1773185669384,1.2005283,85.614,85.581,12.93298434]
[1773185669772,1.2005283,85.614,85.581,1.24814776]
[1773185670491,1.2005283,85.612,85.591,1.24814776]
[1773185670890,1.2005283,85.612,85.585,1.24814776]
[1773185671883,1.2005283,85.612,85.586,11.68415395]
[1773185672576,1.2005283,85.612,85.59,4.19423173]
[1773185674198,1.2005283,85.612,85.591,11.68347139]
[1773185674394,7.21935603,85.62,85.601,1.24814776]
[1773185675594,1.2005283,85.619,85.601,1.24814776]
[1773185676391,1.2005283,85.619,85.592,1.24814776]
[1773185676792,1.2005283,85.617,85.592,1.24814776]
[1773185679904,1.2005283,85.615,85.592,11.68321213]
[1773185680886,1.2005283,85.615,85.59,4.19423173]
[1773185681101,1.2005283,85.615,85.591,12.93161915]
[1773185682409,1.2005283,85.615,85.592,1.24814776]
[1773185685011,1.2005283,85.613,85.593,12.93134615]
[1773185685197,1.2005283,85.613,85.594,1.24814776]
[1773185685602,1.2005283,85.613,85.59,4.19423173]
[1773185685909,1.2005283,85.613,85.591,11.68347139]
[1773185686203,1.2005283,85.613,85.582,1.24814776]
[1773185686412,1.2005283,85.613,85.583,1.24814776]
[1773185687610,1.25012368,85.611,85.584,11.68442699]
[1773185688002,1.25012368,85.611,85.583,1.24814776]
[1773185689403,1.24240148,85.609,85.584,11.68442699]
[1773185689803,1.24240148,85.609,85.584,12.85717422]
[1773185690613,8.46175751,85.62,85.601,1.17274723]
[1773185690913,1.24240148,85.618,85.601,1.17274723]
[1773185691100,1.24240148,85.618,85.591,1.17274723]
[1773185691497,1.24240148,85.618,85.592,40.89167211]
[1773185691697,7.21935603,85.62,85.601,1.17274723]
[1773185692914,7.21935603,85.62,85.603,1.17274723]
[1773185693114,1.24240148,85.618,85.581,1.17274723]
[1773185693415,11.41358776,85.62,85.6,4.19423173]
[1773185693416,7.21935603,85.62,85.6,4.19423173]
[1773185693608,7.21935603,85.62,85.601,1.17274723]
[1773185694315,1.24240148,85.618,85.581,1.17274723]
[1773185694621,1.24240148,85.618,85.591,1.17274723]
[1773185694798,11.67965054,85.619,85.591,1.17274723]
[1773185694799,1.24240148,85.616,85.591,1.17274723]
[1773185695203,1.24240148,85.616,85.575,11.68555748]
[1773185695507,1.24240148,85.616,85.438,25.9976654]
[1773185695508,1.24240148,85.589,85.555,1.17274723]
[1773185695711,1.24240148,85.579,85.555,1.17274723]
[1773185695917,1.24240148,85.576,85.555,1.17274723]
[1773185696418,30.0,85.577,85.521,1.16930344]
[1773185696419,1.24240148,85.569,85.521,1.16930344]
[1773185696619,1.24240148,85.569,85.531,1.17274723]
[1773185696924,3.69383402,85.597,85.543,1.17274723]
[1773185696925,21.53861358,85.567,85.543,1.17274723]
[1773185697127,1.24240148,85.578,85.543,1.17274723]
[1773185697617,1.24240148,85.569,85.53,4.19423173]
[1773185697826,1.24240148,85.569,85.531,1.17274723]
[1773185698006,1.24240148,85.569,85.541,1.17274723]
[1773185698206,11.68525198,85.578,85.551,1.17274723]
[1773185698424,1.24240148,85.577,85.551,1.17274723]
[1773185699300,1.24240148,85.583,85.553,1.17274723]
[1773185699724,4.19423173,85.58,85.553,1.17274723]
[1773185701122,1.24240148,85.583,85.553,1.17274723]
[1773185701708,12.92702892,85.583,85.554,11.6885242]
[1773185701905,1.24240148,85.609,85.571,0.58840487]
[1773185702137,1.24240148,85.609,85.581,1.17274723]
[1773185703924,1.24240148,85.607,85.582,12.85744728]
[1773185706830,1.24240148,85.599,85.561,1.17274723]
[1773185707229,1.24240148,85.599,85.571,1.17274723]
[1773185708133,1.24240148,85.609,85.571,1.17274723]
[1773185709736,4.82477569,85.671,85.571,1.17274723]
[1773185709737,4.39423173,85.63,85.591,1.17274723]
[1773185710033,4.39423173,85.63,85.572,99.33155703]
[1773185710034,0.2,85.63,85.601,1.17274723]
[1773185711128,0.2,85.63,85.61,5.36697896]
[1773185713317,0.2,85.63,85.611,1.17274723]
[1773185714833,1.24240148,85.619,85.593,11.68315035]
[1773185715625,1.24240148,85.617,85.594,1.17274723]
[1773185716325,1.24240148,85.617,85.6,4.19423173]
[1773185716536,11.67862207,85.627,85.6,5.36697896]
[1773185716537,1.24240148,85.624,85.6,5.36697896]
[1773185716920,1.24240148,85.624,85.601,1.17274723]
[1773185717734,1.24240148,85.624,85.602,11.68197004]
[1773185717921,1.24240148,85.624,85.603,1.17274723]
[1773185718835,0.2,85.63,85.611,1.17274723]
[1773185719335,1.22631268,85.624,85.59,29.20877981]
[1773185719534,1.22631268,85.624,85.591,1.24878973]
[1773185719723,1.22631268,85.624,85.578,131.31147724]
[1773185719724,1.22631268,85.624,85.6,4.19423173]
[1773185719924,1.22631268,85.624,85.601,11.68210651]
[1773185720117,1.22631268,85.624,85.601,12.93089624]
[1773185720324,1.22631268,85.624,85.602,1.24878973]
[1773185722442,1.22631268,85.624,85.603,11.68183358]
[1773185722836,1.22631268,85.624,85.603,12.93062331]
[1773185723039,1.22631268,85.624,85.604,1.24878973]
[1773185723922,0.2,85.63,85.61,4.19423173]
[1773185724122,0.24599999,85.625,85.611,1.24878973]
[1773185724532,0.24599999,85.625,85.613,1.24878973]
[1773185726139,0.2,85.63,85.613,1.24878973]
[1773185727022,1e-08,85.63,85.615,1.24878973]
[1773185727332,1e-08,85.63,85.621,1.24878973]
[1773185728543,1e-08,85.63,85.614,11.68033265]
[1773185728544,1e-08,85.63,85.615,1.24878973]
[1773185729041,1e-08,85.63,85.617,1.24878973]
[1773185731231,1e-08,85.63,85.621,1.24878973]
[1773185731542,0.2,85.64,85.621,1.24878973]
[1773185733848,0.2,85.64,85.623,1.24878973]
[1773185734046,1.42631268,85.64,85.612,1.24878973]
[1773185734532,1.22631268,85.638,85.612,1.24878973]
[1773185736044,1.22631268,85.638,85.614,1.24878973]
[1773185736939,1.22631268,85.638,85.613,40.88164179]
[1773185736940,1.22631268,85.637,85.613,11.68046908]
[1773185737139,1.22631268,85.637,85.606,1.24878973]
[1773185737726,1.22631268,85.637,85.611,1.24878973]
[1773185737927,1.22631268,85.635,85.612,11.68060552]
[1773185738536,1.22631268,85.635,85.613,1.24878973]
[1773185740246,0.2,85.64,85.607,1.24878973]
[1773185740247,1.22631268,85.633,85.607,1.24878973]
[1773185741146,1.22631268,85.633,85.608,12.92994102]
[1773185741451,1.22631268,85.633,85.61,4.19022245]
[1773185741752,1.22631268,85.633,85.611,1.24878973]
[1773185742141,1.22631268,85.633,85.607,1.24878973]
[1773185742334,1.22631268,85.633,85.609,1.24878973]
[1773185743947,1.22631268,85.633,85.61,4.19022245]
[1773185744152,1.22631268,85.633,85.611,12.92953169]
[1773185744349,1.22631268,85.631,85.611,1.24878973]
[1773185744528,1.22631268,85.631,85.611,12.92953169]
[1773185747953,1.22631268,85.631,85.611,12.95577624]
[1773185748146,1.22631268,85.631,85.612,1.27503428]
[1773185748553,1.22631268,85.631,85.613,11.68046908]
[1773185748852,1.22631268,85.631,85.614,1.27503428]
[1773185751047,1.22631268,85.631,85.615,11.68019622]
[1773185751443,1.22631268,85.631,85.6,1.29112968]
[1773185751647,1.1938265,85.629,85.601,1.29112968]
[1773185753143,1.1938265,85.629,85.61,5.48135213]
[1773185753536,1.1938265,85.629,85.61,4.19022245]
[1773185753737,1.1938265,85.629,85.611,1.29112968]
[1773185754660,1e-08,85.64,85.622,1.29112968]
[1773185754848,0.2,85.67,85.631,1.29112968]
[1773185755048,7.34219894,85.689,85.661,11.67392395]
[1773185755049,1.3938265,85.68,85.661,11.67392395]
[1773185755249,1.3938265,85.68,85.66,4.19022245]
[1773185755250,0.2,85.68,85.662,1.29112968]
[1773185755455,1.3938265,85.68,85.66,4.19022245]
[1773185757461,1.3938265,85.68,85.661,11.67392395]
[1773185757759,1.3938265,85.68,85.64,4.19022245]
[1773185757760,1.1938265,85.669,85.622,0.93279407]
[1773185757963,1.1938265,85.669,85.64,4.19022245]
[1773185758743,1.1938265,85.669,85.63,4.19022245]
[1773185759057,1.1938265,85.669,85.63,5.12423521]
[1773185759660,1.1938265,85.667,85.631,11.6780138]
[1773185759966,1.1938265,85.678,85.64,4.19022245]
[1773185760265,1.1938265,85.659,85.631,11.6780138]
[1773185760647,1.1938265,85.659,85.64,4.19022245]
[1773185760854,1.1938265,85.678,85.641,0.93640159]
[1773185761043,1.1938265,85.678,85.64,4.19022245]
[1773185761245,1.1938265,85.669,85.64,4.19022245]
[1773185762859,1.1938265,85.669,85.589,104.0]
[1773185762860,1.1938265,85.649,85.614,0.93876519]
[1773185763062,1.1938265,85.639,85.614,0.93876519]
[1773185770057,1.1938265,85.639,85.62,4.19022245]
[1773185774678,1.1938265,85.639,85.621,11.67937772]
[1773185775648,1.1938265,85.651,85.622,0.94926658]
[1773185775848,1.1938265,85.658,85.631,0.94926658]
[1773185776766,1.1938265,85.658,85.632,11.67787742]
[1773185776967,1.1938265,85.658,85.633,0.9491139]
[1773185778372,104.0,85.68,85.641,0.94896281]
[1773185778373,1.1938265,85.664,85.641,0.94896281]
[1773185778556,4.39022245,85.68,85.651,1.29112968]
[1773185779051,4.39022245,85.68,85.652,12.96628028]
[1773185779256,4.39022245,85.68,85.653,1.29112968]
[1773185779456,11.67147142,85.679,85.653,1.29112968]
[1773185780669,1.22963784,85.678,85.654,11.67487799]
[1773185780976,1.22963784,85.678,85.655,1.19417425]
[1773185781870,0.2,85.68,85.651,1.19417425]
[1773185781871,1.22963784,85.676,85.651,1.19417425]
[1773185782266,1.22963784,85.676,85.66,1.19417425]
[1773185782651,1.22963784,85.676,85.65,4.19022245]
[1773185782857,1.22963784,85.676,85.652,1.19417425]
[1773185784566,0.2,85.68,85.652,1.19417425]
[1773185785273,1.42963784,85.68,85.654,1.19417425]
[1773185786662,1.42963784,85.68,85.653,11.6750143]
[1773185786862,1.22963784,85.679,85.653,11.6750143]
[1773185787059,1.22963784,85.678,85.653,11.6750143]
[1773185787581,1.22963784,85.678,85.65,5.3843967]
[1773185788483,1.22963784,85.678,85.651,11.67528692]
[1773185788889,1.22963784,85.676,85.651,11.67528692]
[1773185791283,0.1,85.69,85.661,1.19417425]
[1773185791595,1.22963784,85.688,85.66,5.38012249]
[1773185791980,1.22963784,85.688,85.661,1.19417425]
[1773185792186,1.22963784,85.688,85.652,1.19417425]
[1773185792494,1.22963784,85.688,85.66,4.18594824]
[1773185793696,1.22963784,85.686,85.661,11.67392395]
[1773185795375,11.67065414,85.685,85.661,11.67392395]
[1773185795575,1.22963784,85.684,85.661,11.67392395]
[1773185797188,1.22963784,85.684,85.657,11.67436047]
[1773185797574,1.22963784,85.682,85.657,11.67436047]
[1773185799397,1.22963784,85.682,85.657,12.86853472]
[1773185800981,1.22963784,85.68,85.657,12.86853472]
[1773185801888,1.22963784,85.68,85.657,11.67436047]
[1773185802494,1.22963784,85.677,85.65,4.18594824]
[1773185802678,1.22963784,85.677,85.651,1.19417425]
[1773185806901,1.22963784,85.677,85.652,11.6751506]
[1773185807282,1.22963784,85.677,85.652,12.86932485]
[1773185807610,1.22963784,85.677,85.653,1.19417425]
[1773185809503,1.22963784,85.677,85.654,11.67487799]
[1773185809820,1.31989924,85.675,85.649,9.01412347]
[1773185810113,1.31989924,85.675,85.65,1.25079638]
[1773185810320,1.31989924,85.681,85.651,1.25079638]
[1773185810516,1.31989924,85.681,85.649,38.20302234]
[1773185810517,4.18594824,85.71,85.681,1.25079638]
[1773185810819,11.66874759,85.699,85.681,1.25079638]
[1773185810995,11.66874759,85.699,85.652,1.16751506]
[1773185810996,1.31989924,85.698,85.66,4.18594824]
[1773185811618,1.31989924,85.698,85.649,38.20302234]
[1773185811619,1.31989924,85.689,85.65,4.18594824]
[1773185811811,1.31989924,85.689,85.651,11.67528692]
[1773185813000,1.31989924,85.689,85.652,1.25079638]
[1773185814215,4.18594824,85.69,85.652,1.25079638]
[1773185814216,1.31989924,85.687,85.653,11.6750143]
[1773185814598,1.31989924,85.679,85.653,11.6750143]
[1773185815720,1.31989924,85.669,85.638,11.67705924]
[1773185815922,1.31989924,85.659,85.638,11.67705924]
[1773185816104,4.18594824,85.67,85.638,11.67705924]
[1773185816105,1.31989924,85.664,85.641,1.25079638]
[1773185817211,1.31989924,85.67,85.641,1.25079638]
[1773185817824,1.31989924,85.67,85.64,4.18594824]
[1773185817825,1.31989924,85.677,85.651,1.25079638]
[1773185818123,1.31989924,85.677,85.653,1.25079638]
[1773185818326,1.31989924,85.682,85.661,1.25079638]
[1773185818506,11.67085888,85.684,85.661,1.25079638]
[1773185819525,11.67085888,85.684,85.663,1.25079638]
[1773185819702,1.31989924,85.688,85.663,1.25079638]
[1773185820404,1.31989924,85.686,85.663,1.25079638]
[1773185821525,1.31989924,85.686,85.664,12.9243115]
[1773185821731,1.31989924,85.686,85.665,1.25079638]
[1773185822519,1.31989924,85.686,85.666,11.67324259]
[1773185823603,1.31989924,85.686,85.666,12.92403897]
[1773185823828,1.31989924,85.686,85.667,1.25079638]
[1773185824032,1.31989924,85.699,85.667,1.25079638]
[1773185824206,1.31989924,85.698,85.667,1.25079638]
[1773185826628,1.31989924,85.689,85.667,1.25079638]
[1773185827015,1.31989924,85.679,85.66,1.25079638]
[1773185828122,1.31989924,85.679,85.659,11.67415553]
[1773185828705,1.31989924,85.679,85.656,1.25079638]
[1773185830832,1.31989924,85.679,85.657,11.6744691]
[1773185831132,1.31989924,85.679,85.658,1.25079638]
[1773185831827,4.18594824,85.69,85.658,1.25079638]
[1773185833820,0.84942426,85.689,85.66,1.25079638]
[1773185834928,11.67012826,85.689,85.66,1.25079638]
[1773185835146,0.85176372,85.688,85.66,1.25079638]
[1773185835932,0.85176372,85.688,85.662,1.25079638]
[1773185836141,11.66968419,85.693,85.662,1.25079638]
[1773185836435,1.05407611,85.7,85.671,1.25079638]
[1773185837827,1.05407611,85.7,85.673,1.25079638]
[1773185838031,1.05407611,85.7,85.672,11.67242506]
[1773185838032,11.66672462,85.714,85.681,1.25079638]
[1773185838533,0.85860924,85.709,85.681,1.25079638]
[1773185840040,0.86518989,85.689,85.652,1.27262046]
[1773185840236,0.86518989,85.689,85.661,1.27262046]
[1773185842535,0.86945094,85.698,85.663,1.27262046]
[1773185843930,0.87363055,85.683,85.655,1.27262046]
[1773185848920,0.88362985,85.681,85.657,1.27262046]
[1773185849431,0.88362985,85.681,85.656,11.67460539]
[1773185849640,0.88362985,85.679,85.656,11.67460539]
[1773185850174,0.88362985,85.679,85.657,1.27262046]
[1773185850539,0.88362985,85.679,85.658,12.94695327]
[1773185850732,11.67160764,85.678,85.658,12.94695327]
[1773185851139,0.88748342,85.677,85.658,12.94695327]
[1773185852663,0.88937572,85.682,85.659,1.27262046]
[1773185854627,0.88937572,85.682,85.661,1.27262046]
[1773185857348,4.18706483,85.69,85.627,1.16785593]
[1773185857349,0.89852038,85.699,85.671,1.27262046]
[1773185857540,12.56726797,85.699,85.671,1.27262046]
[1773185858432,11.66901991,85.697,85.672,11.67242506]
[1773185858633,11.66901991,85.697,85.673,1.27262046]
[1773185859631,12.57276509,85.697,85.673,1.27262046]
[1773185861548,0.90542942,85.696,85.675,1.27262046]
[1773185861950,0.2,85.72,85.691,1.27262046]
[1773185862136,0.2,85.72,85.701,1.27262046]
[1773185862736,1.1087756,85.72,85.701,1.27262046]
[1773185862937,1.1087756,85.72,85.69,4.18706483]
[1773185862938,0.9087756,85.719,85.691,1.27262046]
[1773185863835,0.91040811,85.718,85.693,1.27262046]
[1773185865853,0.2,85.72,85.701,1.27262046]
[1773185866461,1.11364075,85.72,85.701,1.27262046]
[1773185866843,1.11364075,85.72,85.694,11.66942843]
[1773185866844,5.30070558,85.72,85.695,1.27262046]
[1773185867039,0.91523405,85.719,85.695,1.27262046]
[1773185867241,0.2,85.72,85.701,1.27262046]
[1773185868560,8.27554883,85.749,85.711,1.24316376]
[1773185868765,8.27554883,85.749,85.702,40.83918694]
[1773185868766,0.91990179,85.748,85.721,1.24316376]
[1773185869063,0.91990179,85.747,85.721,1.24316376]
[1773185869461,0.92140858,85.739,85.711,1.37936393]
[1773185870055,0.92291575,85.729,85.703,1.37936393]
[1773185870362,0.92291575,85.729,85.702,11.66833912]
[1773185870550,0.92291575,85.727,85.698,11.66888375]
[1773185870746,11.66480029,85.728,85.698,11.66888375]
[1773185870747,0.92441828,85.719,85.698,11.66888375]
[1773185871252,0.92441828,85.719,85.699,1.37936393]
[1773185871439,0.92441828,85.727,85.699,1.37936393]
[1773185875660,0.93017473,85.725,85.7,13.04797536]
[1773185877059,11.66534459,85.724,85.701,1.37936393]
[1773185877253,0.93294191,85.723,85.701,1.37936393]
[1773185878963,0.93567054,85.719,85.681,1.37936393]
[1773185879147,0.93567054,85.717,85.683,1.37936393]
[1773185881250,0.93567054,85.717,85.691,1.37936393]
[1773185882371,0.93964259,85.715,85.691,1.37936393]
[1773185882576,0.93964259,85.715,85.684,11.67079034]
[1773185882975,0.93964259,85.715,85.685,1.37936393]
[1773185883455,11.66670555,85.714,85.686,11.67051793]
[1773185883656,0.94095206,85.713,85.687,1.37936393]
[1773185885174,11.66670555,85.714,85.668,1.37936393]
[1773185885175,0.94350651,85.709,85.668,1.37936393]
[1773185885369,40.83346943,85.714,85.656,1.37936393]
[1773185885370,0.94350651,85.689,85.656,1.37936393]
[1773185885575,0.94350651,85.687,85.658,1.37936393]
[1773185887192,58.33352777,85.714,85.657,11.6744691]
[1773185887193,0.94601281,85.709,85.671,1.37936393]
[1773185887472,0.94601281,85.709,85.67,4.18706483]
[1773185887473,0.94601281,85.715,85.681,1.37936393]
[1773185887971,0.94723354,85.714,85.683,1.37936393]
[1773185890358,0.94723354,85.714,85.684,11.67079034]
[1773185890674,0.94723354,85.714,85.685,1.37936393]
[1773185891184,0.95080065,85.712,85.685,1.37936393]
[1773185893669,0.95080065,85.712,85.687,1.37936393]
[1773185896782,0.95080065,85.712,85.689,1.37936393]
[1773185898676,11.66684166,85.713,85.691,1.37936393]
[1773185898977,0.95977104,85.718,85.691,1.37936393]
[1773185899981,0.96187711,85.717,85.691,1.37936393]
[1773185901771,0.96187711,85.717,85.693,1.3822629]
[1773185903570,0.96493507,85.725,85.693,1.3822629]
[1773185904270,0.96493507,85.725,85.701,1.3822629]
[1773185904666,11.6640762,85.734,85.701,1.3822629]
[1773185904890,12.63100437,85.734,85.711,1.3822629]
[1773185905078,0.96692817,85.733,85.711,1.3822629]
[1773185906074,29.15627334,85.745,85.711,1.3822629]
[1773185906075,0.96790521,85.731,85.711,1.3822629]
[1773185907486,0.96790521,85.731,85.712,13.04924068]
[1773185907988,0.96790521,85.731,85.713,1.3822629]
[1773185908367,0.96790521,85.731,85.714,11.66670555]
[1773185910793,12.42397921,85.742,85.715,1.3822629]
[1773185910999,0.76099997,85.742,85.721,0.79882691]
[1773185911677,1.34653046,85.746,85.721,0.79882691]
[1773185912485,1.34653046,85.746,85.723,1.3822629]
[1773185914478,1.34653046,85.746,85.724,11.66534459]
[1773185914671,1.34653046,85.746,85.725,1.3822629]
[1773185917711,1.34653046,85.746,85.722,29.16385551]
[1773185917712,1.34653046,85.746,85.726,13.04733534]
[1773185918098,1.34653046,85.746,85.727,1.3822629]
[1773185921005,1.34653046,85.746,85.728,13.04706319]
[1773185922706,1.34653046,85.742,85.722,11.66561676]
[1773185923094,1.34653046,85.742,85.723,1.3822629]
[1773185926810,1.34653046,85.742,85.711,1.3822629]
[1773185927100,1.34653046,85.739,85.711,1.3822629]
[1773185927510,1.34653046,85.739,85.712,1.39975784]
[1773185929207,1.39004666,85.737,85.713,11.66684166]
[1773185930098,1.39004666,85.737,85.72,4.1808027]
[1773185930300,1.39004666,85.737,85.718,1.28923837]
[1773185930499,1.39004666,85.737,85.713,42.1231842]
[1773185930693,1.39004666,85.737,85.714,1.28923837]
[1773185931301,1.39004666,85.737,85.716,1.28923837]
[1773185932409,1.34806572,85.736,85.702,1.28923837]
[1773185932729,1.34806572,85.736,85.664,93.38768418]
[1773185932730,1.34806572,85.736,85.704,1.28923837]
[1773185938611,11.6638479,85.735,85.705,11.66793069]
[1773185938814,1.34806572,85.734,85.706,1.28923837]
[1773185940697,1.34806572,85.734,85.681,1.16711989]
[1773185940698,1.34806572,85.729,85.693,11.66945471]
[1773185940894,1.34806572,85.719,85.69,1.28923837]
[1773185941119,1.34806572,85.719,85.69,12.95917981]
[1773185941315,1.34806572,85.719,85.691,1.28923837]
[1773185942809,1.34806572,85.715,85.691,1.28923837]
[1773185943912,13.0150435,85.712,85.692,11.66970078]
[1773185944116,1.34806572,85.711,85.692,12.95893915]
[1773185945415,31.34806572,85.71,85.692,12.95893915]
[1773185946112,1.34806572,85.71,85.692,12.95893915]
[1773185946313,1.34806572,85.71,85.693,1.28923837]
[1773185946620,30.0,85.709,85.693,1.28923837]
[1773185947615,30.0,85.708,85.693,1.28923837]
[1773185948626,1.34806572,85.71,85.693,1.28923837]
[1773185949926,1.34806572,85.71,85.694,12.9586668]
[1773185950225,1.34806572,85.737,85.701,1.28923837]
[1773185950422,1.34806572,85.737,85.711,1.28923837]
[1773185950808,1.34806572,85.736,85.711,1.28923837]
[1773185953410,13.01191362,85.735,85.713,1.28923837]
[1773185953612,1.34806572,85.749,85.713,1.28923837]
[1773185953828,1.34806572,85.748,85.721,1.28923837]
[1773185955416,1.34806572,85.746,85.721,1.28923837]
[1773185959540,1.34806572,85.746,85.702,29.17068489]
[1773185959541,1.39494551,85.739,85.704,1.307988]
[1773185965634,1.39494551,85.737,85.706,1.307988]
[1773185966149,11.66343978,85.738,85.706,1.307988]
[1773185966334,13.05838529,85.738,85.706,1.307988]
[1773185966933,1.39494551,85.737,85.707,11.66765841]
[1773185967265,1.39494551,85.737,85.708,1.307988]
[1773185967836,1.39494551,85.729,85.681,1.307988]
[1773185968148,1.39494551,85.719,85.681,1.307988]
[1773185968335,102.82729097,85.743,85.691,1.307988]